Cogmind - Beta 15 @@@ ROGUE MODE // 2025.06.27 @ 23:49:52 Player: LoftTara Result: Destroyed by 0K-6VR(j) with Overtuned Pulse Rifle Performance ------------- Evolutions (0) 0 Regions Visited (3) 600 Robots Destroyed (16) 80 Value Destroyed (503) 503 Prototype IDs (0) 0 Alien Tech Used (0) 0 Bonus (797) 797 TOTAL SCORE: 1980 Bonus ------- Registered with UFD 300 Met Optimus in HQ 500 Friendly Fire -3 Cogmind --------- Core Integrity 0/250 Matter 300/300 Energy 86/275 System Corruption 0% Temperature Cool (12) Movement Walking (95) Location -7/Scraptown Parts ------- > --- POWER (1) -------- Deuterium Engine > --- PROPULSION (2) --- Overtuned Titanium Leg VSS Leg > --- UTILITY (2) ------ Small Storage Unit Improved Targeting Computer > --- WEAPON (2) ------- EM Pulse Gun Grenade Launcher > --- INVENTORY (8) ---- Overtuned Titanium Leg Scrap Suit Transmission Jammer DRS Beacon (Ready) Peak State ------------ > --- POWER ------------ Improved Deuterium Engine > --- PROPULSION ------- Improved Carbon-fiber Leg Flexi-carbon Leg > --- UTILITY ---------- Small Storage Unit Improved Sensor Array > --- WEAPON ----------- Gatling Laser Gauss Cannon > --- INVENTORY -------- Deuterium Engine Scrap Suit Improved Targeting Computer Transmission Jammer Grenade Launcher Heavy Mace DRS Beacon [Rating: 27] Favorites ----------- Power Ion Engine Engine Ion Engine Power Core Nuclear Core Propulsion Aluminum Leg Leg Aluminum Leg Utility Small Storage Unit Device Improved Sensor Array Storage Small Storage Unit Processor Salvage Targeting Computer Weapon Mace Energy Gun Medium Laser Ballistic Gun Assault Rifle Ballistic Cannon Gauss Cannon Launcher Grenade Launcher Impact Weapon Mace Slashing Weapon Ripteeth Build | -11 -10 -10 -7 ------- Run | Yrd Mat Sub Scr Slots Evolved . | . . . . Power . | . . . . Propulsion . | . . . . Utility . | . . . . Weapon . | . . . . Parts Attached 30 | 8 1 1 20 Power 6 | 2 . . 4 Engine 5 | 2 . . 3 Core 1 | . . . 1 Reactor . | . . . . Propulsion 9 | 2 . . 7 Treads . | . . . . Leg 9 | 2 . . 7 Wheel . | . . . . Hover . | . . . . Flight . | . . . . Utility 4 | 1 1 . 2 Device 1 | . . . 1 Storage 1 | 1 . . . Processor 2 | . 1 . 1 Hackware . | . . . . Protection . | . . . . Artifact . | . . . . Weapon 11 | 3 . 1 7 Energy Gun 3 | 1 . . 2 Energy Cannon . | . . . . Ballistic Gun 3 | 2 . . 1 Ballistic Cannon 1 | . . . 1 Launcher 1 | . . . 1 Special Weapon . | . . . . Impact Weapon 2 | . . 1 1 Slashing Weapon 1 | . . . 1 Piercing Weapon . | . . . . Special Melee Weapon . | . . . . Unidentified Prototypes . | . . . . Parts Lost 7 | . . . 7 Power 1 | . . . 1 Propulsion 2 | . . . 2 Utility 1 | . . . 1 Weapon 3 | . . . 3 Highest Loss Streak 4 | . . . 4 To Critical Strikes . | . . . . Average Backups 7 | 2 6 7 7 Power . | . 1 1 . Propulsion . | 1 1 . . Utility 3 | . 2 4 4 Weapon 1 | 1 1 2 1 Tool/Special . | . . . . Unused Backups 12 | . 2 1 9 Power 1 | . . . 1 Propulsion 3 | . 2 . 1 Utility 7 | . . 1 6 Weapon . | . . . . Tool/Special 1 | . . . 1 Average Slot Usage (%) 99 | . 98 100 99 Engine 13 | . 14 14 13 Leg 27 | . 28 28 27 Device 9 | . . . 11 Storage 14 | . 14 14 14 Processor 4 | . 12 14 2 Energy Gun 4 | . 14 14 2 Ballistic Gun 3 | . 14 4 2 Ballistic Cannon 7 | . . . 9 Impact Weapon 11 | . . 9 13 Peak Build Rating 27 | 6 9 10 27 Average Rating 17 | 3 8 9 20 On Entrance 6 | . 6 9 10 Naked Turns . | . . . . Heaviest Build 27 | 14 14 14 27 Greatest Support 38 | 20 20 20 38 Greatest Overweight (x) 6 | 3 . . 6 Average Overweight (x) . | . . . . Largest Inventory Capacity 8 | 8 8 8 8 Average Capacity 7 | 7 8 8 8 Most Carried 8 | 6 8 8 8 Average Carried 7 | 2 6 7 7 Final Capacity 8 | 8 8 8 8 Final Carried 8 | 4 8 8 5 Class Distribution -------------------- 79% | Mutant 20% | Derelict-Mutant Dominant Class ---------------- Mutant | -10/Materials Mutant | -10/Subcaves Mutant | -7/Scraptown Resources | -11 -10 -10 -7 ----------- Run | Yrd Mat Sub Scr Matter Collected 697 | 221 108 34 334 Remotely . | . . . . Salvage Created 708 | . 116 180 412 Parts 41 | . 8 15 18 Haulers Intercepted . | . . . . Recyclers Shooed . | . . . . Parts Field Recycled . | . . . . Retrieved Matter . | . . . . Parts Self-Destructed . | . . . . Prevented . | . . . . Kills | -11 -10 -10 -7 ------- Run | Yrd Mat Sub Scr Combat Hostiles Destroyed 15 | . 6 . 9 Melee 1 | . . . 1 Guns 7 | . 6 . 1 Cannons 2 | . . . 2 AOE 5 | . . . 5 Classes Destroyed 6 | . 2 . 4 Watcher 1 | . 1 . . Swarmer 6 | . 6 . . Explorer 1 | . . . 1 Ranger 3 | . . . 3 Guru 2 | . . . 2 Scrapper 3 | . . . 3 Best Kill Streak 6 | . 3 . 6 Combat Bots Only 6 | . 3 . 6 Max Kills in Single Turn 2 | . 2 . 2 Gunslinging . | . . . . Exploded 2 | . . . 2 Melee 1 | . . . 1 Uniques/NPCs Destroyed . | . . . . Combat | -11 -10 -10 -7 -------- Run | Yrd Mat Sub Scr Hostile Shots Fired 91 | . 27 . 64 Missed 21 | . 3 . 18 Hits 70 | . 24 . 46 Melee 4 | . . . 4 Projectile 66 | . 24 . 42 Critical Strikes 3 | . 1 . 2 Damage Taken 1069 | . 201 . 868 Core 251 | . 53 . 198 Absorbed by Shields . | . . . . Core Remaining (%) 100 | 100 . . . Volleys Fired 48 | . 13 19 16 Largest 2 | . 2 2 2 Hottest 120 | . 70 70 120 Shots Fired 79 | . 26 27 26 Gun 64 | . 26 27 11 Cannon 9 | . . . 9 Launcher 6 | . . . 6 Special . | . . . . Kinetic 30 | . 13 8 9 Thermal 41 | . 13 19 9 Explosive 6 | . . . 6 Electromagnetic 2 | . . . 2 Robot Hit Streak 9 | . 4 9 7 Robot Miss Streak 4 | . 2 1 4 Penetration Max . | . . . . Secondary Targets 1 | . 1 . . Max Gunslinging Chain 1 | . 1 . . Shots Hit Robots 58 | . 14 24 20 Core Hits 32 | . 7 7 18 Critical Kills 1 | . . . 1 Critical Parts Destroyed . | . . . . Critical Strikes 2 | . . 1 1 Burn 1 | . . 1 . Smash 1 | . . . 1 Melee Attacks 2 | . . . 2 Impact 1 | . . . 1 Slashing 1 | . . . 1 Piercing . | . . . . Sneak Attacks . | . . . . Combat Hostiles . | . . . . Follow-up Attacks . | . . . . Damage Inflicted 1357 | . 186 301 870 Guns 699 | . 186 301 212 Cannons 121 | . . . 121 Explosions 523 | . . . 523 Melee 14 | . . . 14 Ramming . | . . . . Kinetic 258 | . 60 77 121 Thermal 550 | . 126 224 200 Explosive 523 | . . . 523 Electromagnetic 12 | . . . 12 Impact 14 | . . . 14 Slashing . | . . . . Piercing . | . . . . Highest Corruption . | . . . . Average Corruption . | . . . . Corruption Purged . | . . . . Corruption Blocked . | . . . . Overload Shots . | . . . . Overflow Damage . | . . . . Projectiles . | . . . . Explosions . | . . . . Melee . | . . . . Knockbacks . | . . . . Impact . | . . . . Kinetic . | . . . . Secondary . | . . . . Self-Inflicted Damage 10 | . . . 10 Shots 1 | . . . 1 Rammed . | . . . . Targets Rammed . | . . . . Kicked . | . . . . Crushed . | . . . . Highest Temperature 282 | . 63 . 282 Average Temperature 85 | . 27 . 114 Received Heat Transfer 253 | . . . 253 Effects 3 | . . . 3 Interference 3 | . . . 3 Siege Activations . | . . . . Martial Activations . | . . . . Shielding Activations . | . . . . Robots Disrupted . | . . . . Combat Hostiles . | . . . . Robots Corrupted . | . . . . Combat Hostiles . | . . . . Parts Fried . | . . . . Impact Corruptions . | . . . . Robots Melted . | . . . . Combat Hostiles . | . . . . Parts Melted 4 | . 1 . 3 Heat Transferred 1460 | . 370 740 350 Parts Sabotaged . | . . . . Parts Stolen . | . . . . Parts Stripped . | . . . . Power Chain Reactions . | . . . . Alert | -11 -10 -10 -7 ------- Run | Yrd Mat Sub Scr Maximum Alert Level . | . . . . Low Security (%) 100 | 100 100 . . Level 1 . | . . . . Level 2 . | . . . . Level 3 . | . . . . Level 4 . | . . . . Level 5 . | . . . . High Security . | . . . . Max Security . | . . . . Peak Influence 140 | . 140 . . Initial . | . . . . Average 26 | . 32 . . Influence Increases 181 | . 181 . . Destroy 0b10 Robot/C 120 | . 120 . . Destroy 0b10 Robot/NC 5 | . 5 . . Destroy Leader 22 | . 22 . . Successful Hack 4 | . 4 . . Lose Combat Pursuer 30 | . 30 . . Influence Decreases 181 | . 51 130 . Entered New Map 63 | . . 63 . Time Decay 118 | . 51 67 . Squads Dispatched 1 | . 1 . . Investigation . | . . . . Extermination . | . . . . Reinforcement 1 | . 1 . . Assault . | . . . . Garrison . | . . . . Intercept . | . . . . Searches Triggered . | . . . . Construction Impeded . | . . . . Haulers Reinforced . | . . . . Active Scanning Responses . | . . . . Cargo Convoy Interrupts . | . . . . Stealth | -11 -10 -10 -7 --------- Run | Yrd Mat Sub Scr Distress Signals . | . . . . Communications Jammed . | . . . . Distress Signals . | . . . . Times Spotted 25 | . 8 . 17 Peak Tracking Total 8 | . 4 . 8 Tactical Retreats 1 | . 1 . . Traps | -11 -10 -10 -7 ------- Run | Yrd Mat Sub Scr Traps Triggered . | . . . . Indirectly . | . . . . Trap Hack Attempts . | . . . . Triggered . | . . . . Disarmed . | . . . . Reprogrammed . | . . . . Reused . | . . . . Traps Extracted . | . . . . Installed . | . . . . Triggered . | . . . . Most Traps Carried 1 | . . 1 1 Machines | -11 -10 -10 -7 ---------- Run | Yrd Mat Sub Scr Machines Disabled 2 | . . . 2 Max in Single Turn 1 | . . . 1 Machines Repaired . | . . . . Machines Dismantled . | . . . . Machines Sabotaged . | . . . . Overloaded Fab Kills . | . . . . Hacking | -11 -10 -10 -7 --------- Run | Yrd Mat Sub Scr Machines Accessed 10 | . 1 . 9 Terminals 1 | . 1 . . Fabricators . | . . . . Repair Stations . | . . . . Recycling Units . | . . . . Scanalyzers . | . . . . Garrison Access . | . . . . Total Hacks 71 | . 1 . 70 Successful 71 | . 1 . 70 Failed . | . . . . Catastrophic . | . . . . Database Lockouts . | . . . . Manual . | . . . . Terminals 1 | . 1 . . Fabricators . | . . . . Repair Stations . | . . . . Recycling Units . | . . . . Scanalyzers . | . . . . Garrison Access . | . . . . Terminal Hacks 71 | . 1 . 70 Record 64 | . . . 64 Robot Analysis 6 | . . . 6 Locate Traps 1 | . 1 . . Fabricator Hacks . | . . . . Repair Station Hacks . | . . . . Recycling Unit Hacks . | . . . . Scanalyzer . | . . . . Garrison Access Hacks . | . . . . Unauthorized Hacks . | . . . . Terminals . | . . . . Fabricators . | . . . . Repair Stations . | . . . . Recycling Units . | . . . . Scanalyzers . | . . . . Garrison Access . | . . . . Data Cores Recovered . | . . . . Used . | . . . . Hacking Detections . | . . . . Full Trace Events . | . . . . Feedback Events . | . . . . Feedback Blocked . | . . . . Robot Schematics Acquired . | . . . . Robots Built . | . . . . Authchips . | . . . . Time . | . . . . Total Robot Build Rating . | . . . . Part Schematics Acquired . | . . . . Parts Built . | . . . . Authchips . | . . . . Time . | . . . . Total Part Build Rating . | . . . . Parts Repaired . | . . . . Time . | . . . . Parts Recycled . | . . . . Recycled Matter . | . . . . Retrieved Matter . | . . . . Retrieved Components . | . . . . Parts Scanalyzed . | . . . . Part Schematics Acquired . | . . . . Parts Damaged . | . . . . Bothacking | -11 -10 -10 -7 ------------ Run | Yrd Mat Sub Scr Used RIF Installer . | . . . . Robots Hacked . | . . . . Non-combat . | . . . . Combat . | . . . . Robot Hacks Applied . | . . . . Relay Couplers Released . | . . . . Fabnet Peak Effective % . | . . . . Robots Rewired . | . . . . Allies Hacked . | . . . . Hacks Repelled . | . . . . Allies | -11 -10 -10 -7 -------- Run | Yrd Mat Sub Scr Total Allies . | . . . . Largest Group . | . . . . Highest-Rated Group . | . . . . Highest-Rated Ally . | . . . . Total Orders . | . . . . Ally Attacks . | . . . . Total Damage . | . . . . Kills . | . . . . Allies Corrupted . | . . . . Allies Melted 4 | . . . 4 Intel | -11 -10 -10 -7 ------- Run | Yrd Mat Sub Scr Active Infowar (turns) 1593 | . . . 1593 Sensors 1593 | . . . 1593 Robot Analysis Total 6 | . . . 6 Derelict Logs Recovered 1 | . . 1 . Drone Launches . | . . . . Drone Recoveries . | . . . . Exploration | -11 -10 -10 -7 ------------- Run | Yrd Mat Sub Scr Turns Passed 2529 | 65 257 251 1956 Spaces Moved 1892 | 40 167 146 1539 Core 28 | 27 . . 1 Treads . | . . . . Legs 1864 | 13 167 146 1538 Wheels . | . . . . Hover . | . . . . Flight . | . . . . Fastest Speed 50 | 50 120 120 95 Average Speed 119 | 117 120 120 119 Slowest Speed 350 | 200 120 120 350 Overloaded Moves . | . . . . Propulsion Burnouts . | . . . . Robots Hopped . | . . . . Potential Cave-ins . | . . . . Cave-ins Triggered . | . . . . Exploration Rate (%) 32 | 4 35 12 80 Regions Visited 3 Branch Regions 2 Pre-discovered Areas 1 | . . 1 . Known Exits Taken . | . . . . Unknown Exits Taken 3 | 1 1 1 . Scrap Searched 9 | . . . 9 Spaces Dug . | . . . . Terrain Destroyed 11 | . . . 11 Melee . | . . . . Projectile 4 | . . . 4 AOE 7 | . . . 7 Terrain Rammed . | . . . . Walls Destroyed . | . . . . Machines Disabled . | . . . . Actions | -11 -10 -10 -7 --------- Run | Yrd Mat Sub Scr Total 2080 | 57 198 195 1630 Wait 43 | . 9 26 8 Move 1889 | 39 166 145 1539 Hop . | . . . . Pick Up 35 | 10 7 2 16 Fast Attach 4 | . . . 4 Attach 14 | 6 1 . 7 Detach 1 | . . . 1 Swap 16 | 2 . 1 13 Drop 28 | . 2 2 24 Fire 48 | . 13 19 16 Melee 2 | . . . 2 Ram . | . . . . Kick . | . . . . Crush . | . . . . Escape Stasis . | . . . . Rewire . | . . . . Trap . | . . . . Miscellaneous . | . . . . Route ------- -11/Scrapyard -10/Materials -10/Subcaves -7/Scraptown (discovered 2 exits: Fac x2) History --------- Turn | Location | Event 7 | -11/Scrapyard | Discovered new exit (range 15) 66 | -11/Scrapyard | Entered Materials 257 | -10/Materials | Discovered new exit (range 8) 312 | -10/Materials | Build established: Mutant 323 | -10/Materials | Entered Subcaves 324 | -10/Subcaves | Approached by a straggling Scientist 453 | -10/Subcaves | Shifting Twisted Machinery released Sub. Beam Cannon 455 | -10/Subcaves | Shifting Twisted Machinery released Piercing Trap 555 | -10/Subcaves | Learned location of Storage (-7) 561 | -10/Subcaves | Scientist uncovered a shortcut to Scraptown 574 | -10/Subcaves | Entered Scraptown 820 | -7/Scraptown | Visited Bundlers 921 | -7/Scraptown | Visited Cyclists 954 | -7/Scraptown | Visited Red Mages 1394 | -7/Scraptown | Visited TADAMA 1428 | -7/Scraptown | Visited Assassins FH 1478 | -7/Scraptown | Visited UFD Registry 1715 | -7/Scraptown | Registered with UFD as "Flexitail" 1745 | -7/Scraptown | Visited Science Testing Area 1758 | -7/Scraptown | Visited Shadow of the Wyrm 1808 | -7/Scraptown | Entered Cyclist Reading Room 1933 | -7/Scraptown | Visited DA-N13 Charitable Foundation 1942 | -7/Scraptown | Found DCF Scrap (27 items) 2004 | -7/Scraptown | Visited Curators Association 2054 | -7/Scraptown | Visited LU-1G1's Boring Crew 2190 | -7/Scraptown | Met Optimus 2190 | -7/Scraptown | Accepted into 0bPrime 2244 | -7/Scraptown | Build established: Derelict-Mutant 2269 | -7/Scraptown | Visited Scrap Suit Storage 2283 | -7/Scraptown | Found Scrap Suit 2308 | -7/Scraptown | Visited Derelict Rescue Squad 2316 | -7/Scraptown | Found DRS Beacon 2343 | -7/Scraptown | Visited Analyses Database 2371 | -7/Scraptown | Visited Abandonware Association 2382 | -7/Scraptown | Civil war broke out across Scraptown 2459 | -7/Scraptown | Core integrity fell below 50% 2464 | -7/Scraptown | Core integrity fell below 20% 2491 | -7/Scraptown | Lost 4 parts (2n2w) 2508 | -7/Scraptown | Identified exit to Factory 2511 | -7/Scraptown | Optimus destroyed in the chaos of civil war 2530 | -7/Scraptown | Destroyed by 0K-6VR(j) with Overtuned Pulse Rifle Last Messages --------------- mission is important. Take the northeast exit, it's probably the safer route. Loading 2 Scraptown exits... OI-0CR(x): "Down with Optimus!" Optimus: "We are 0bPrime!" ANNOUNCEMENT: The traitor Optimus has been dealt with. Put down any remaining collaborators. Optimus destroyed. Acquired Ripteeth. Acquired 10 matter. Dropped Hvy. Mace. Acquired EM Pulse Gun. Acquired 20 matter. Acquired 10 matter. Ripteeth destroyed. Acquired 10 matter. Imp. Deuterium Engine destroyed. Acquired 10 matter. Imp. Sensor Array destroyed. Acquired 10 matter. Map ----- +----------------------------------------------------+ | ?????????????????????????????????????????????????? | | ??????????????????????????????????????? ?????#### | | ????????????????????????????????????? ?????#"%" | | #############???????????????????????? ""???# "! | | ## #????????????????????????? ""???# =% | | ## #????????????#???????????" "???#%*" | | "# #????????????# ??????????"%/ ??# " | | # #????????????# ????????? " % ""??# " | | # #????????????# ####?????? "??# " | | # #????????????? ???????? ???# | | # #?????????????? ????????? ????# | | # #??????????##### #?????????# #????#### | | ##### ##########???????#=!;# ########### ######### | | #???????#%* " " """"""""" """"""""" | | #???????#=!! | | #???????# %* | | #???????#" =! | | #???????#"%!% | | ###### #???#####"!* | | ?????# #???#""" """""""""""""""""""" | | ?????# #???#""" !=/ """""""""""""""""""" | | ?????# #???#""""*%! ""###### ########## | | ?????# #???#""""%! ! ""# ##??? | | ?????# #???#""" !%[ ""# X"#??? | | ?????# ###?#""""! !/ "# "" "" ##??? | | #????# ""#"#""""[@=! ""# "" "" X"#??? | | #????# """"#"""" x% "# " " ##### | | #????# ""###### "=!* "" "" | | #????# ###????# ! ! "" "" | | #????# ######### %[ !!""# " " ##### | | #????# ==!!*!!""# "" "" ""#??? | | #????# !=% !==""# "" "" ##??? | | ?????# [%==[!%=""# X"#??? | | ?????# !*%=%!=[["# ##??? | | ###### [%&!!![ ###### ########## | | * [*=!%= """""""""""""""""" | | /%*j """"""""""""""""" | | jj | | | | [! | | #""""#"!%! | | #????#" | | #????#""""""*""""""""""" """"""" | | # ########## ####????#######*########### ####### | | #??# #??????????# =*/!=##" "## | | #??# #??????????# =[!!=###"" ""### | | #??# #??????????# ! =[ ]!#?#&" "]#?# | | #??# #??????????# %*=[[%*###"" ""### | | """"" #??# #??????????#|% ##[* ##" "## | | """"" #??# #??????????# ##[!!###"" ""### | +----------------------------------------------------+ Best States ------------- Heat Dissipation 25 Energy Generation 16 Energy Capacity 290 Matter Stores 300 Matter Capacity 300 Sight Range 16 Robot Scan Range 15 Terrain Scan Density 10 Evasion (%) 56 Targeting Accuracy 6 Salvage Targeting 1 Item Schematics ----------------- None Robot Schematics ------------------ None Fabricated ------------ Nothing Repaired ---------- Nothing Alien Tech Used ----------------- None Achievements -------------- Armchair Analyst Challenges ------------ None Game ------ Seed CloakMappingPrototype Manual? 0 Play Time 00:53:12 Cumulative 14.5 hours Start 2025.06.27 @ 22:14:33 End 2025.06.27 @ 23:49:52 Sessions 1 Manual Loads 0 Difficulty Rogue Special Mode None Game No. 16 Rogue 16 Adventurer 0 Explorer 0 Win Type - Total 0 Types 0/0/0/0/0/0/0/0/0/0 Lore% 18 Gallery% 20 Achievement% 20 Wizard Run 0 Options --------- Layout 1 ASCII 0 Keyboard 0 Movement Mouse Keybinds 0 Fullscreen 1 Font 48/Smallcaps Map View 50x35 Zoom Use 0% Tactical HUD 0 Map Filters NONE Filters NONE Steam 1 RUN: 170554ef-6615-4bdf-b9a5-78798c365726